bitfinex-derivatives/quotes_SOLF0:USTF0_20251208
["timestamp","ask_amount","ask_price","bid_price","bid_amount"]
[1765225531068,0.04808308,134.31,134.29,6.7012]
[1765225531264,0.04808308,134.31,134.29,9.8912]
[1765225531470,0.04808308,134.31,134.3,3.19]
[1765225531971,0.04808308,134.31,134.29,9.8912]
[1765225532175,3.34808308,134.31,134.28,0.0525696]
[1765225533571,0.04808308,134.31,134.28,9.9441696]
[1765225533775,0.04808308,134.31,134.29,3.19]
[1765225534178,0.04808308,134.31,134.29,9.8912]
[1765225535280,3.34808308,134.31,134.28,0.0525696]
[1765225535880,3.34808308,134.31,134.28,3.2425696]
[1765225536175,3.34808308,134.31,134.28,9.9442696]
[1765225536680,3.34808308,134.31,134.28,0.0525696]
[1765225538889,3.3,134.29,134.28,0.0525696]
[1765225542366,3.3,134.28,134.24,63.28]
[1765225543477,104.2315,134.31,134.24,63.28]
[1765225543478,3.35312336,134.27,134.25,0.05334522]
[1765225547281,3.3,134.26,134.25,0.05334522]
[1765225547877,0.05312336,134.27,134.25,0.05334522]
[1765225549272,3.41312336,134.27,134.25,0.05334522]
[1765225552688,10.11552336,134.27,134.25,0.05334522]
[1765225552873,3.36,134.26,134.2,3.37]
[1765225553081,3.36,134.26,134.19,3.37]
[1765225554090,0.05350594,134.24,134.21,3.4212952]
[1765225554285,3.41350594,134.24,134.21,3.4212952]
[1765225555790,0.05350594,134.24,134.21,3.4212952]
[1765225556291,0.05350594,134.24,134.21,10.1264952]
[1765225556886,3.41350594,134.24,134.21,0.0512952]
[1765225557581,9.06516381,134.23,134.21,0.0512952]
[1765225557787,3.36,134.23,134.21,0.0512952]
[1765225559291,5.7088476,134.22,134.21,0.0512952]
[1765225560396,3.34,134.21,134.17,63.32]
[1765225560693,3.34,134.19,134.17,63.32]
[1765225561087,5.7139725,134.18,134.17,63.32]
[1765225561789,5.7139725,134.18,134.16,6.75596183]
[1765225562092,3.39312214,134.19,134.16,10.06596183]
[1765225562291,5.7151078,134.18,134.17,6.7073]
[1765225563387,5.7151078,134.18,134.16,3.35836183]
[1765225563684,5.7151078,134.17,134.16,0.04836183]
[1765225563891,9.0551078,134.17,134.16,0.04836183]
[1765225566896,3.34,134.16,134.1,3.31]
[1765225567194,3.34,134.14,134.08,171.0526]
[1765225567395,9.04174022,134.13,134.09,3.31]
[1765225567594,3.34,134.13,134.09,3.31]
[1765225567887,0.04990729,134.12,134.1,3.36305899]
[1765225568489,0.04990729,134.12,134.1,10.07385899]
[1765225568690,3.34,134.17,134.1,0.05305899]
[1765225568993,3.34,134.15,134.1,0.05305899]
[1765225569203,3.34,134.13,134.1,3.36305899]
[1765225569497,3.34,134.13,134.11,6.7102]
[1765225569700,3.39451589,134.13,134.11,6.7102]
[1765225571197,3.39451589,134.13,134.12,3.31]
[1765225571198,0.05451589,134.13,134.12,3.31]
[1765225571903,0.05451589,134.13,134.12,66.67]
[1765225572601,3.34,134.19,134.16,3.31]
[1765225572809,3.34,134.2,134.16,3.31]
[1765225573098,5.6926576,134.19,134.16,3.31]
[1765225573310,3.34,134.2,134.16,3.31]
[1765225573499,5.69356519,134.19,134.16,10.0177]
[1765225573698,0.05615887,134.19,134.16,10.07035242]
[1765225574706,3.39615887,134.19,134.16,10.07035242]
[1765225575004,3.39615887,134.19,134.16,6.76035242]
[1765225578310,3.39615887,134.19,134.16,10.12035242]
[1765225578603,3.15,134.17,134.16,0.05265242]
[1765225578806,8.84592996,134.17,134.16,0.05265242]
[1765225579004,8.84592996,134.17,134.05,65.36]
[1765225579005,3.15,134.16,134.05,65.36]
[1765225579214,3.15,134.1,134.02,3.36]
[1765225579505,3.15,134.08,134.0,107.8225]
[1765225579701,8.84592996,134.07,134.01,3.36]
[1765225579907,8.84592996,134.06,134.01,3.36]
[1765225580107,0.04864831,134.05,134.02,3.41012142]
[1765225580299,0.04864831,134.05,134.04,3.36]
[1765225580708,3.15,134.12,134.06,3.36]
[1765225581005,3.15,134.15,134.08,3.36]
[1765225581209,5.69124981,134.14,134.08,3.36]
[1765225581409,8.84124981,134.13,134.08,3.36]
[1765225581709,0.05115426,134.12,134.1,3.36]
[1765225582605,0.05115426,134.12,134.1,10.0705]
[1765225583809,9.8567,134.19,134.13,3.36]
[1765225584000,5.69356833,134.18,134.13,3.36]
[1765225584204,5.69356833,134.17,134.13,3.36]
[1765225584404,9.8567,134.19,134.13,3.36]
[1765225584604,8.8443015,134.18,134.13,3.36]
[1765225584810,5.6943015,134.17,134.13,3.36]
[1765225585008,0.05684803,134.17,134.14,3.41324233]
[1765225585808,0.05684803,134.17,134.14,0.05324233]
[1765225585809,3.20684803,134.17,134.14,0.05324233]
[1765225586008,3.15,134.15,134.14,0.05324233]
[1765225587518,8.84879882,134.15,134.14,0.05324233]
[1765225588417,3.15,134.14,134.11,63.38]
[1765225589320,3.19902229,134.14,134.11,63.43039039]
[1765225589506,8.84939875,134.13,134.11,63.43039039]
[1765225589820,3.15,134.13,134.11,63.43039039]
[1765225590714,3.15,134.13,134.11,0.05039039]
[1765225591319,3.19902229,134.14,134.11,0.05039039]
[1765225594719,3.15,134.12,134.11,0.05039039]
[1765225596118,15.57525787,134.12,134.11,0.05039039]
[1765225596916,8.86545787,134.12,134.11,0.05039039]
[1765225597419,5.71545787,134.12,134.11,3.41039039]
[1765225597724,5.71545787,134.12,134.11,0.05039039]
[1765225597926,0.04902229,134.14,134.11,4.91039039]
[1765225598129,0.04902229,134.14,134.12,3.36]
[1765225600623,0.04902229,134.14,134.13,3.36]
[1765225601725,0.04902229,134.14,134.12,70.1095]
[1765225602516,0.04902229,134.14,134.12,63.4]
[1765225602932,3.19902229,134.14,134.12,63.4]
[1765225603125,5.71602785,134.13,134.12,63.4]
[1765225603428,5.71602785,134.13,134.11,0.05039039]
[1765225603620,3.19902229,134.14,134.11,0.05039039]
[1765225603927,5.71368125,134.13,134.11,0.05039039]
[1765225604227,3.19902229,134.14,134.11,0.05039039]
[1765225604526,5.71711534,134.13,134.11,0.05039039]
[1765225604828,3.19902229,134.14,134.11,0.05039039]
[1765225605127,5.71711703,134.13,134.11,0.05039039]
[1765225605329,3.19902229,134.14,134.11,0.05039039]
[1765225605624,5.71680089,134.13,134.11,0.05039039]
[1765225605826,0.04902229,134.14,134.12,3.36]
[1765225606029,5.71709944,134.13,134.12,3.36]
[1765225606228,0.04902229,134.14,134.12,3.36]
[1765225606431,0.04902229,134.14,134.13,3.36]
[1765225609225,0.04902229,134.14,134.12,70.0897]
[1765225609528,0.04902229,134.14,134.12,73.3497]
[1765225613627,0.04902229,134.14,134.13,3.26]
[1765225613832,9.26407269,134.2,134.15,3.26]
[1765225613833,9.96349539,134.2,134.15,3.26]
[1765225614032,5.74937025,134.19,134.17,3.26]
[1765225614232,5.74937025,134.19,134.16,63.38]
[1765225614233,5.74937025,134.18,134.16,66.64]
[1765225614435,5.74937025,134.17,134.16,73.3477]
[1765225616331,0.05264147,134.18,134.16,73.3477]
[1765225617833,3.13264147,134.18,134.16,63.38]
[1765225618026,8.82612668,134.17,134.15,0.04827462]
[1765225618232,3.08,134.17,134.15,0.04827462]
[1765225618837,5.74602913,134.16,134.15,0.04827462]
[1765225619230,8.82602913,134.16,134.15,0.04827462]
[1765225621337,5.74602913,134.16,134.15,3.08827462]
[1765225621539,0.05264147,134.18,134.17,3.04]
[1765225621737,5.80126079,134.18,134.17,66.42]
[1765225623743,5.80126079,134.18,134.17,73.1273]
[1765225624641,0.05264147,134.18,134.17,73.1273]
[1765225625938,0.05264147,134.18,134.17,9.7473]
[1765225626135,3.21264147,134.18,134.15,0.04827462]
[1765225626340,3.16,134.16,134.11,63.38]
[1765225626546,3.16,134.14,134.11,66.42]
[1765225626749,3.16,134.14,134.08,104.4023]
[1765225626750,3.16,134.12,134.08,3.04]
[1765225627040,6.88349539,134.17,134.08,63.38]
[1765225627041,5.74768782,134.11,134.08,63.38]
[1765225627241,3.16,134.11,134.08,63.38]
[1765225627447,3.21052814,134.11,134.08,63.43464592]
[1765225627943,8.90576432,134.1,134.08,63.43464592]
[1765225628138,5.74576432,134.09,134.08,63.43464592]
[1765225628338,5.74415021,134.09,134.08,63.43464592]
[1765225628741,0.05052814,134.11,134.09,3.04]
[1765225628955,5.74262119,134.1,134.08,63.43464592]
[1765225629150,5.74262119,134.09,134.08,63.43464592]
[1765225629350,3.21052814,134.11,134.08,63.43464592]
[1765225629548,5.74091713,134.1,134.08,63.43464592]
[1765225629750,3.21052814,134.11,134.08,63.43464592]
[1765225630052,8.90091489,134.1,134.08,63.43464592]
[1765225630252,3.16,134.1,134.08,63.43464592]
[1765225630649,3.16,134.1,134.08,70.14634592]
[1765225630856,3.21052814,134.11,134.08,73.18634592]
[1765225631048,5.73962502,134.1,134.08,73.18634592]
[1765225631352,3.21052814,134.11,134.08,73.18634592]
[1765225631553,3.16,134.09,134.08,63.43464592]
[1765225631851,8.89891301,134.09,134.08,0.05464592]
[1765225633352,3.16,134.09,134.08,0.05464592]
[1765225634555,8.89193416,134.09,134.08,0.05464592]
[1765225635156,5.73193416,134.09,134.08,0.05464592]
[1765225635459,8.89193416,134.09,134.08,0.05464592]
[1765225636055,5.73193416,134.09,134.08,0.05464592]
[1765225636257,0.05052814,134.11,134.08,3.09464592]
[1765225636653,3.21052814,134.11,134.08,3.09464592]
[1765225643972,3.21052814,134.11,134.08,0.05464592]
[1765225644773,3.21052814,134.11,134.08,6.76644592]
[1765225645082,0.05052814,134.11,134.08,3.10464592]
[1765225645577,3.12052814,134.11,134.08,0.05464592]
[1765225645962,3.07,134.09,134.08,0.05464592]
[1765225646360,3.07,134.1,134.08,0.05464592]
[1765225646665,3.12052814,134.11,134.08,3.10464592]
[1765225646861,0.05052814,134.11,134.1,3.05]
[1765225648775,0.05052814,134.11,134.09,70.1113]
[1765225649072,0.05052814,134.11,134.09,73.1613]
[1765225655575,0.05052814,134.11,134.1,3.05]
[1765225658376,3.07,134.14,134.12,3.05]
[1765225658683,9.7788,134.15,134.12,3.05]
[1765225658881,3.07,134.13,134.1,2.48916019]
[1765225659178,3.07,134.13,134.09,70.1109]
[1765225659383,3.07,134.11,134.1,0.05585588]
[1765225659979,8.79994489,134.11,134.1,0.05585588]
[1765225660773,3.07,134.08,134.05,73.1629]
[1765225661084,3.07,134.08,134.05,63.4]
[1765225661281,3.07,134.06,134.02,3.05]
[1765225661671,3.07,134.06,134.03,0.05623919]
[1765225661877,0.0494915,134.05,134.03,0.05623919]
[1765225663081,0.0494915,134.05,134.03,3.10623919]
[1765225663786,0.0494915,134.05,134.03,9.82043919]
[1765225663987,0.0494915,134.05,134.04,3.05]
[1765225666485,0.0494915,134.05,134.03,6.77043919]
[1765225666877,3.1194915,134.05,134.03,0.05623919]
[1765225668190,0.0494915,134.05,134.03,3.10623919]
[1765225669587,0.0494915,134.05,134.03,9.82043919]
[1765225669982,0.0494915,134.05,134.04,3.16]
[1765225671891,27.9638,134.1,134.06,3.16]
[1765225672188,5.75762535,134.09,134.06,3.16]
[1765225672384,5.75762535,134.08,134.06,3.16]
[1765225672590,10.15666143,134.12,134.08,3.16]
[1765225672788,5.75801769,134.11,134.08,3.16]
[1765225672992,5.75801769,134.1,134.09,3.21370171]
[1765225673395,5.75801769,134.1,134.09,0.05370171]
[1765225674084,5.75801769,134.1,134.09,3.21370171]
[1765225676290,0.047687,134.11,134.1,9.8708]
[1765225676485,5.80642004,134.11,134.1,9.8708]
[1765225679595,5.80642004,134.11,134.1,6.7108]
[1765225679985,5.80642004,134.11,134.1,9.8708]
[1765225680492,9.05642004,134.11,134.09,0.05370171]
[1765225680695,9.00849133,134.1,134.09,0.05370171]
[1765225681088,3.25,134.09,134.06,6.7124]
[1765225681386,9.00849133,134.08,134.04,66.58]
[1765225681689,3.25,134.08,134.04,73.2934]
[1765225681990,0.05206191,134.07,134.05,0.05073213]
[1765225682188,0.05206191,134.07,134.05,9.92393213]
[1765225683093,0.05206191,134.07,134.06,3.16]
[1765225683590,0.05206191,134.07,134.05,9.92393213]
[1765225685097,0.05206191,134.07,134.06,3.24]
[1765225685695,0.05206191,134.07,134.05,6.76393213]
[1765225685884,3.10206191,134.07,134.05,6.76393213]
[1765225686088,3.10206191,134.07,134.05,0.05073213]
[1765225686503,0.05206191,134.07,134.05,10.00363213]
[1765225686690,0.05206191,134.07,134.06,3.24]
[1765225687894,0.05206191,134.07,134.05,6.76363213]
[1765225688196,3.10206191,134.07,134.05,6.76363213]
[1765225688993,0.05206191,134.07,134.05,10.00363213]
[1765225689201,0.05206191,134.07,134.06,3.24]
[1765225691403,0.05206191,134.07,134.05,6.76363213]
[1765225691404,0.05206191,134.07,134.05,10.00363213]
[1765225693003,0.05206191,134.07,134.06,3.24]
[1765225693806,0.05206191,134.07,134.06,66.66]
[1765225695705,0.05206191,134.07,134.06,73.3728]
[1765225700297,0.05206191,134.07,134.06,70.1328]
[1765225701408,9.12168797,134.07,134.06,63.42]
[1765225702104,3.31,134.06,134.05,0.05073213]
[1765225702311,5.75962606,134.06,134.05,0.05073213]
[1765225702512,5.75962606,134.06,134.05,3.12073213]
[1765225702715,3.36206191,134.07,134.05,3.12073213]
[1765225703312,5.76680073,134.06,134.05,3.12073213]
[1765225704210,0.05206191,134.07,134.05,3.12073213]
[1765225704711,0.05206191,134.07,134.06,3.07]
[1765225705021,5.81894864,134.07,134.06,3.07]
[1765225705222,5.81894864,134.07,134.06,66.49]
[1765225705712,0.05206191,134.07,134.06,66.49]
[1765225706702,0.05206191,134.07,134.06,70.38108607]
[1765225708504,0.05206191,134.07,134.06,66.49]
[1765225708913,5.81941363,134.07,134.06,63.42]
[1765225710014,5.81941363,134.07,134.06,66.49]
[1765225711314,9.12941363,134.07,134.06,63.42]
[1765225711515,3.31,134.06,134.05,0.05073213]
[1765225711711,9.07735172,134.06,134.05,0.05073213]
[1765225712514,3.31,134.05,134.01,9.7849]
[1765225712709,3.31,134.03,134.01,6.7149]
[1765225712916,5.76735172,134.02,134.01,9.7849]
[1765225714219,5.76735172,134.02,134.01,3.07]
[1765225715118,0.04836357,134.03,134.01,3.07]
[1765225715818,0.04836357,134.03,134.0,6.76878476]
[1765225715819,3.35836357,134.03,134.0,9.83878476]
[1765225716019,3.35836357,134.03,134.01,3.07]
[1765225716217,3.35836357,134.03,134.0,6.76878476]
[1765225716419,5.7576082,134.02,134.0,9.83878476]
[1765225716617,3.35836357,134.03,134.0,9.83878476]
[1765225716821,5.75746552,134.02,134.0,9.83878476]
[1765225717020,3.35836357,134.03,134.0,9.83878476]
[1765225717222,5.75530555,134.02,134.0,9.83878476]
[1765225717521,3.35836357,134.03,134.0,9.83878476]
[1765225717721,5.7549803,134.02,134.01,3.07]
[1765225718024,0.04836357,134.03,134.01,9.7849]
[1765225718224,0.04836357,134.03,134.02,66.49]
[1765225719526,0.04836357,134.03,134.02,63.42]
[1765225719725,9.11612962,134.03,134.02,63.42]
[1765225720024,5.80612962,134.03,134.02,3.07]
[1765225720224,5.80612962,134.03,134.01,6.7149]
[1765225720429,3.35836357,134.03,134.0,3.12318476]
[1765225721412,3.35836357,134.03,134.0,9.83898476]
[1765225722736,3.35836357,134.03,134.0,12.33207036]
[1765225726532,3.35836357,134.03,134.01,3.07]
[1765225727632,3.35836357,134.03,134.01,9.7853]
[1765225729731,3.35836357,134.03,134.02,3.19]
[1765225729732,0.04836357,134.03,134.02,3.19]
[1765225730436,0.04836357,134.03,134.02,5.6830856]
[1765225730824,3.34836357,134.03,134.01,6.7153]
[1765225731430,3.34836357,134.03,134.01,9.9053]
[1765225732131,0.04836357,134.03,134.01,9.9053]
[1765225733835,0.04836357,134.03,134.02,3.19]
[1765225735930,9.09800349,134.03,134.0,0.05318476]
[1765225736233,3.3,134.01,134.0,0.05318476]
[1765225736434,9.04963992,134.01,134.0,0.05318476]
[1765225737431,5.74963992,134.01,134.0,0.05318476]
[1765225737632,5.74963992,134.01,134.0,3.24318476]
[1765225738433,0.04836357,134.03,134.01,3.19]
[1765225738631,5.74534415,134.02,134.01,3.19]
[1765225740021,5.74534415,134.02,134.01,12.3983856]
[1765225740224,0.04836357,134.03,134.02,3.19]
[1765225740426,0.04836357,134.03,134.01,69.1230856]
[1765225740924,0.04836357,134.03,134.02,3.19]
[1765225741338,5.74854021,134.07,134.04,3.19]
[1765225741528,9.44287586,134.12,134.08,3.19]
[1765225741836,9.04888306,134.11,134.08,3.19]
[1765225742026,5.74888306,134.1,134.09,3.19]
[1765225742428,0.0562469,134.11,134.09,3.19]
[1765225744133,0.0562469,134.11,134.1,2.4930856]
[1765225745732,0.0562469,134.11,134.1,5.5530856]
[1765225748039,3.3862469,134.11,134.09,63.42]
[1765225748237,0.0562469,134.11,134.09,5.5530856]
[1765225749437,0.0562469,134.11,134.1,3.06]
[1765225750236,5.73442999,134.15,134.12,3.06]
[1765225750438,3.33,134.16,134.13,5.5530856]
[1765225750638,5.73305406,134.15,134.13,5.5530856]
[1765225750940,3.33,134.16,134.13,5.5530856]
[1765225751141,5.73232457,134.15,134.13,5.60749542]
[1765225751342,3.38028713,134.16,134.13,5.60749542]
[1765225751536,5.7303396,134.15,134.13,5.60749542]
[1765225751742,3.33,134.15,134.13,2.54749542]
[1765225754431,3.38028713,134.16,134.13,5.60749542]
[1765225759350,3.38028713,134.16,134.13,2.54749542]
[1765225759651,3.38028713,134.16,134.13,0.05440982]
[1765225759852,3.17,134.13,134.08,3.12]
[1765225760663,3.17,134.13,134.1,3.12]
[1765225760864,3.22700683,134.13,134.1,3.16933]
[1765225763467,3.22700683,134.13,134.1,9.88013]
[1765225766565,0.05700683,134.13,134.11,3.12]
[1765225766770,0.05700683,134.13,134.11,12.3232856]
[1765225766970,0.05700683,134.13,134.12,3.12]
[1765225767766,0.05700683,134.13,134.12,9.8298]
[1765225769071,3.22700683,134.13,134.11,2.4930856]
[1765225769273,3.22700683,134.13,134.11,5.6130856]
[1765225769472,0.05700683,134.13,134.12,3.12]
[1765225770363,0.05700683,134.13,134.12,9.8298]
[1765225774370,0.05700683,134.13,134.12,6.7098]
[1765225774575,0.05700683,134.13,134.12,3.12]
[1765225774763,0.05700683,134.13,134.11,69.0130856]
[1765225774968,0.05700683,134.13,134.11,66.52]
[1765225775371,3.22700683,134.13,134.11,70.1103]
[1765225778781,3.22700683,134.13,134.1,0.04933]
[1765225778970,5.72009243,134.13,134.1,0.04933]
[1765225779170,3.17,134.12,134.1,0.04933]
[1765225779984,11.39814268,134.11,134.1,0.04933]
[1765225781885,3.17,134.1,134.06,3.12]
[1765225782182,8.90505708,134.09,134.06,3.12]
[1765225782390,3.17,134.09,134.06,3.12]
[1765225782882,3.22314239,134.09,134.06,3.17111278]
[1765225783184,5.75561167,134.08,134.06,3.17111278]
[1765225783489,3.22314239,134.09,134.06,3.17111278]
[1765225783680,5.75499557,134.08,134.06,3.17111278]
[1765225783984,5.75478322,134.07,134.06,3.17111278]
[1765225787187,0.05314239,134.09,134.07,3.12]
[1765225787388,5.76112103,134.08,134.07,3.12]
[1765225790493,0.05314239,134.09,134.08,3.21]
[1765225790692,5.81224468,134.09,134.08,3.21]
[1765225792192,3.36,134.08,134.06,0.05111278]
[1765225792791,9.11853491,134.07,134.06,0.05111278]
[1765225795595,5.75853491,134.07,134.06,3.26111278]
[1765225795899,5.75853491,134.07,134.06,0.05111278]
[1765225796492,5.75853491,134.07,134.06,3.26111278]
[1765225797393,5.75853491,134.07,134.06,0.05111278]
[1765225798090,9.11853491,134.07,134.06,0.05111278]
[1765225799299,3.36,134.06,134.01,6.715]
[1765225799600,3.36,134.04,134.01,9.925]
[1765225800393,3.41381247,134.04,134.02,3.36]
[1765225800607,0.05381247,134.04,134.02,3.36]
[1765225801193,0.05381247,134.04,134.02,10.0748]
[1765225801596,3.39381247,134.04,134.01,0.04786796]
[1765225801896,3.34,134.02,134.01,0.04786796]
[1765225802103,3.34,134.01,133.96,7.25315157]
[1765225802291,3.34,134.01,133.97,3.36]
[1765225802492,15.45977924,134.04,133.97,3.36]
[1765225802689,3.34,134.04,133.99,3.36]
[1765225803102,0.05375178,134.03,134.02,10.0748]
[1765225803304,0.05606212,134.04,134.03,3.36]
[1765225803502,0.05606212,134.04,134.02,10.0748]
[1765225803699,3.39606212,134.04,134.01,0.04901688]
[1765225804100,3.39606212,134.04,134.01,3.40901688]
[1765225804298,0.05606212,134.04,134.01,3.40901688]
[1765225804501,0.05606212,134.04,134.01,7.30216845]
[1765225804699,0.05606212,134.04,134.02,3.36]
[1765225804900,0.05606212,134.04,134.01,0.04901688]
[1765225804901,3.39606212,134.04,134.01,0.04901688]
[1765225805495,3.34,134.02,134.01,0.04901688]
[1765225806402,9.06981554,134.02,134.01,0.04901688]
[1765225806798,3.34,134.03,134.01,0.04901688]
[1765225807403,3.39606212,134.04,134.01,3.40901688]
[1765225807803,0.05606212,134.04,134.02,3.36]
[1765225808902,0.05606212,134.04,134.02,66.78]
[1765225809107,0.05606212,134.04,134.03,3.36]
[1765225810410,0.05606212,134.04,134.02,73.4946]
[1765225810613,3.39606212,134.04,134.02,63.42]
[1765225813415,3.39606212,134.04,134.01,0.04901688]
[1765225813602,3.39606212,134.04,134.01,3.40901688]
[1765225813806,0.05606212,134.04,134.01,3.40901688]
[1765225814008,0.05606212,134.04,134.01,7.30216845]
[1765225814211,0.05606212,134.04,134.02,3.36]
[1765225815113,3.39606212,134.04,134.01,0.04901688]
[1765225819215,8.90590852,134.03,134.01,0.04901688]
[1765225819417,3.17,134.03,134.01,0.04901688]
[1765225820407,5.73721719,134.02,134.01,0.04901688]
[1765225821019,5.73691702,134.02,134.01,0.04901688]
[1765225822331,8.90691702,134.02,134.01,0.04901688]
[1765225825125,5.73691702,134.02,134.01,0.04901688]
[1765225827126,5.73691702,134.02,134.01,6.76431688]
[1765225827432,0.05606212,134.04,134.01,3.35901688]
[1765225827629,5.74948271,134.03,134.02,10.0248]
[1765225828226,5.74948271,134.03,134.01,0.04901688]
[1765225828422,8.92114048,134.02,134.01,0.04901688]
[1765225830428,5.75114048,134.02,134.01,0.04901688]
[1765225833540,8.92114048,134.02,134.01,0.04901688]
[1765225835040,3.17,134.01,133.97,63.44]
[1765225835240,8.92114048,134.0,133.97,66.75]
[1765225835544,5.75765677,133.99,133.97,73.4669]
[1765225835733,3.17,134.0,133.97,73.4669]
[1765225835940,5.75765677,133.99,133.97,66.75]
[1765225836243,3.22478112,133.99,133.97,63.49097698]
[1765225837339,3.22478112,133.99,133.97,0.05097698]
[1765225837532,8.93174339,133.98,133.97,0.05097698]
[1765225837934,5.76174339,133.98,133.97,0.05097698]
[1765225838633,5.76174339,133.98,133.97,3.36097698]
[1765225838832,0.05478112,133.99,133.97,3.36097698]
[1765225839031,0.05478112,133.99,133.97,10.07787698]
[1765225839243,0.05478112,133.99,133.98,3.31]
[1765225839442,5.81476178,133.99,133.98,3.31]
[1765225841344,0.05478112,133.99,133.98,3.31]
[1765225842644,5.8158989,133.99,133.98,3.31]
[1765225842950,8.9858989,133.99,133.97,6.76787698]
[1765225843148,3.22478112,133.99,133.97,0.05097698]
[1765225843441,8.93220262,133.98,133.97,0.05097698]
[1765225843649,3.17,133.97,133.93,6.7192]
[1765225843834,3.17,133.95,133.93,6.7192]
[1765225844043,3.17,133.95,133.89,63.44]
[1765225844044,3.17,133.93,133.89,63.44]
[1765225844335,3.17,133.92,133.89,73.4712]
[1765225844546,6.7184,133.95,133.9,3.31]
[1765225844547,3.17,133.95,133.9,3.31]
[1765225844739,0.05582268,133.92,133.91,10.0302]
[1765225847149,6.92576554,133.99,133.94,3.31]
[1765225847449,3.17,134.01,133.95,63.46]
[1765225847639,3.17,133.99,133.95,66.77]
[1765225848035,0.05586782,133.98,133.96,0.0492434]
[1765225848241,3.14586782,133.98,133.96,0.0492434]
[1765225848436,8.83787714,133.97,133.96,0.0492434]
[1765225849152,3.09,133.96,133.92,6.7195]
[1765225849335,5.74787714,133.95,133.92,9.7595]
[1765225849535,3.09,133.96,133.92,9.7595]
[1765225849745,5.74920872,133.95,133.92,9.7595]
[1765225849941,3.09,133.96,133.92,9.7595]
[1765225850144,8.89466676,133.95,133.93,0.05042485]
[1765225850348,3.09,133.94,133.93,0.05042485]
[1765225850542,0.05583381,133.95,133.93,0.05042485]
[1765225850543,3.14583381,133.95,133.93,0.05042485]
[1765225853249,8.83137229,133.94,133.93,0.05042485]
[1765225855848,8.83137229,133.94,133.89,9.21719006]
[1765225856150,3.09,133.92,133.89,9.21719006]
[1765225856848,8.82649498,133.91,133.85,2.49589006]
[1765225857057,3.09,133.89,133.84,2.49589006]
[1765225857351,3.09,133.89,133.84,5.53589006]
[1765225857750,3.09,133.89,133.84,2.49589006]
[1765225857951,3.09,133.89,133.84,5.53589006]
[1765225858153,3.14495318,133.88,133.85,0.03174006]
[1765225858355,5.64084324,133.88,133.85,0.03174006]
[1765225858556,3.09,133.87,133.85,0.03174006]
[1765225858851,3.09,133.86,133.8,6.7257]
[1765225859543,3.09,133.84,133.78,66.52]
[1765225860049,0.0508383,133.82,133.79,3.04]
[1765225860439,0.0508383,133.82,133.79,9.7662]
[1765225860643,3.1408383,133.82,133.78,3.23]
[1765225860846,3.1408383,133.82,133.76,63.48]
[1765225861045,3.1408383,133.82,133.76,66.71]
[1765225862243,0.0508383,133.82,133.78,3.23]
[1765225862957,0.0508383,133.82,133.8,9.9557]
[1765225864941,3.1408383,133.82,133.8,6.7257]
[1765225865144,0.0508383,133.82,133.8,9.9557]
[1765225865355,0.0508383,133.82,133.81,3.23]
[1765225865544,3.09,133.87,133.84,3.23]
[1765225865953,9.8109,133.9,133.84,3.23]
[1765225866656,0.05271745,133.88,133.86,0.0508383]
[1765225867452,0.05271745,133.88,133.86,3.2808383]
[1765225868556,0.05271745,133.88,133.86,0.0508383]
[1765225869256,3.14271745,133.88,133.86,0.0508383]
[1765225870454,9.86471745,133.88,133.86,0.0508383]
[1765225870757,3.09,133.87,133.86,0.0508383]
[1765225870949,0.05271745,133.88,133.86,3.2808383]
[1765225871753,0.05271745,133.88,133.86,0.0508383]
[1765225872154,3.14271745,133.88,133.86,0.0508383]
[1765225873250,0.05271745,133.88,133.86,3.2808383]
[1765225874155,9.98738869,133.97,133.87,3.23]
[1765225874458,9.98738869,133.97,133.86,112.08056389]
[1765225874459,6.7189,133.94,133.89,3.23]
[1765225874663,9.8089,133.94,133.89,3.23]
[1765225874960,3.09,133.94,133.89,3.23]
[1765225875155,3.09,133.94,133.9,3.23]
[1765225875363,0.04977783,133.93,133.9,3.28288395]
[1765225875958,0.04977783,133.93,133.9,10.00358395]
[1765225876156,0.04977783,133.93,133.91,3.23]